[Event "48th Rilton Cup 2018"]
[Site "Stockholm"]
[Date "2018.12.27"]
[Round "1"]
[White "Kobalia, Mikhail"]
[Black "Ziegler, Ari"]
[Result "1-0"]
[ECO "C11"]
[WhiteElo "2620"]
[BlackElo "2312"]
[Annotator "RC"]
[PlyCount "69"]
[EventDate "2018.12.27"]
[EventType "swiss"]
[EventCountry "SWE"]
[SourceTitle "playchess.com"]
[Source "ChessBase"]
[SourceQuality "1"]
[TimeControl "40/5400+30:1800+30"]

1. e4 {[%emt 0:00:00]} e6 {[%emt 0:00:00]} 2. d4 {[%emt 0:02:33]} d5 {[%emt 0:00:00]} 3. Nc3 {[%emt 0:00:03]} Nf6 {[%emt 0:00:00]} 4. e5 {[%emt 0:00:18]} Nfd7 {[%emt 0:00:02]} 5. f4 {[%emt 0:00:04]} c5 {[%emt 0:00:07]} 6. Nf3 {[%emt 0:00:03]} Nc6 {[%emt 0:00:05]} 7. Be3 {[%emt 0:00:03]} a6 {[%emt 0:00:16]} 8. Ne2 {[%emt 0:00:40]} b6 {[%emt 0:27:32]} 9. c3 {[%emt 0:10:21]} Bb7 {[%emt 0:03:19]} 10. g4 {[%emt 0:01:25]} h5 {[%emt 0:03:05]} 11. gxh5 {[%emt 0:00:16]} cxd4 {[%emt 0:06:24]} 12. cxd4 {[%emt 0:00:45]} Rxh5 {[%emt 0:00:49]} 13. f5 {[%emt 0:02:50]} Rxf5 {[%emt 0:12:29]} 14. Ng3 {[%emt 0:07:56]} Rxf3 {[%emt 0:00:31]} 15. Qxf3 {[%emt 0:00:05]} Qh4 {[%emt 0:00:10]} 16. O-O-O {[%emt 0:06:53]} Nb4 {[%emt 0:07:21]} 17. Bd3 {[%emt 0:07:27]} Rc8+ {[%emt 0:02:56]} 18. Kb1 {[%emt 0:00:41]} Nxd3 {[%emt 0:00:08]} 19. Rxd3 {[%emt 0:00:22]} Qh7 {[%emt 0:00:58]} 20. Bf4 {[%emt 0:07:56]} a5 {[%emt 0:06:49]} 21. Ka1 {[%emt 0:00:36]} Be7 {[%emt 0:08:05]} 22. Rc3 {[%emt 0:02:58]} g5 {[%emt 0:07:29]} 23. Bd2 {[%emt 0:01:28]} Rxc3 {[%emt 0:00:30]} 24. Qxc3 {[%emt 0:01:16]} Bd8 {[%emt 0:06:26]} 25. Qc1 {[%emt 0:00:28]} Qh4 {[%emt 0:00:33]} 26. Be3 {[%emt 0:00:33]} Ba6 {[%emt 0:02:37]} 27. Qc6 {[%emt 0:03:43]} Bc4 {[%emt 0:00:40]} 28. Qa8 {[%emt 0:01:09]} g4 {[%emt 0:03:06]} 29. b3 {[%emt 0:01:32]} Bb5 {[%emt 0:00:43]} 30. Rc1 {[%emt 0:09:24]} a4 {[%emt 0:00:05]} 31. Rc8 {[%emt 0:00:25]} axb3 {[%emt 0:00:08]} 32. axb3 {[%emt 0:00:12]} f5 {[%emt 0:00:27]} 33. Bd2 {[%emt 0:05:06]} Qe7 {[%emt 0:02:00]} 34. Nh5 {[%emt 0:00:29]} Bd3 {[%emt 0:00:35]} 35. Rxd8+ {[%emt 0:00:20]} 1-0

[Event "48th Rilton Cup 2018"]
[Site "Stockholm"]
[Date "2018.12.27"]
[Round "1"]
[White "Donchenko, Alexander"]
[Black "Vignesh B"]
[Result "1-0"]
[ECO "A61"]
[WhiteElo "2604"]
[BlackElo "1740"]
[Annotator "RC"]
[PlyCount "71"]
[EventDate "2018.12.27"]
[EventType "swiss"]
[EventCountry "SWE"]
[SourceTitle "playchess.com"]
[Source "ChessBase"]
[SourceQuality "1"]
[TimeControl "40/5400+30:1800+30"]

1. d4 {[%emt 0:00:00]} Nf6 {[%emt 0:00:00]} 2. c4 {[%emt 0:00:00]} e6 {[%emt 0:00:00]} 3. Nf3 {[%emt 0:00:13]} c5 {[%emt 0:00:00]} 4. d5 {[%emt 0:01:47]} d6 {[%emt 0:00:10]} 5. Nc3 {[%emt 0:00:15]} exd5 {[%emt 0:00:08]} 6. cxd5 {[%emt 0:00:07]} g6 {[%emt 0:00:10]} 7. Bf4 {[%emt 0:00:40]} Bg7 {[%emt 0:01:04]} 8. Qa4+ {[%emt 0:01:05]} Bd7 {[%emt 0:00:07]} 9. Qb3 {[%emt 0:00:09]} b5 {[%emt 0:02:56]} 10. Bxd6 {[%emt 0:00:38]} Qb6 {[%emt 0:01:06]} 11. Be5 {[%emt 0:00:16]} O-O {[%emt 0:13:28]} 12. e3 {[%emt 0:00:23]} c4 {[%emt 0:01:11]} 13. Qd1 {[%emt 0:00:18]} Rd8 {[%emt 0:07:19]} 14. Qd4 {[%emt 0:12:37]} Qxd4 {[%emt 0:15:42]} 15. Nxd4 {[%emt 0:02:22]} a6 {[%emt 0:08:19]} 16. a3 {[%emt 0:13:35]} Re8 {[%emt 0:07:26]} 17. Nf3 {[%emt 0:03:00]} a5 {[%emt 0:02:23]} 18. Bd4 {[%emt 0:18:20]} Na6 {[%emt 0:07:01]} 19. Ne5 {[%emt 0:05:58]} Ng4 {[%emt 0:20:14]} 20. Nxd7 {[%emt 0:02:15]} Bxd4 {[%emt 0:00:10]} 21. Be2 {[%emt 0:00:53]} Nf6 {[%emt 0:01:02]} 22. exd4 {[%emt 0:03:38]} Nxd7 {[%emt 0:00:05]} 23. Nxb5 {[%emt 0:00:11]} Rab8 {[%emt 0:00:57]} 24. Nd6 {[%emt 0:01:50]} Rxe2+ {[%emt 0:01:28]} 25. Kxe2 {[%emt 0:00:06]} Rxb2+ {[%emt 0:00:03]} 26. Kf3 {[%emt 0:01:41]} Rb3+ {[%emt 0:00:27]} 27. Kf4 {[%emt 0:02:14]} Nc7 {[%emt 0:01:35]} 28. Nxc4 {[%emt 0:02:42]} Nxd5+ {[%emt 0:00:08]} 29. Kg4 {[%emt 0:01:08]} N7f6+ {[%emt 0:02:01]} 30. Kh4 {[%emt 0:00:03]} Ne4 {[%emt 0:01:36]} 31. Rhb1 {[%emt 0:10:44]} f5 {[%emt 0:02:12]} 32. f3 {[%emt 0:06:54]} Nf4 {[%emt 0:01:04]} 33. fxe4 {[%emt 0:00:24]} Nxg2+ {[%emt 0:00:03]} 34. Kg5 {[%emt 0:00:05]} Kg7 {[%emt 0:00:03]} 35. exf5 {[%emt 0:00:04]} h6+ {[%emt 0:00:04]} 36. Kg4 {[%emt 0:00:10]} 1-0

[Event "48th Rilton Cup 2018"]
[Site "Stockholm"]
[Date "2018.12.27"]
[Round "1"]
[White "Maze, Sebastien"]
[Black "Kolbus, Dietmar"]
[Result "1/2-1/2"]
[ECO "A13"]
[WhiteElo "2596"]
[BlackElo "2304"]
[Annotator "ChessBase"]
[PlyCount "109"]
[EventDate "2018.12.27"]
[EventType "swiss"]
[EventCountry "SWE"]
[SourceTitle "playchess.com"]
[Source "ChessBase"]
[SourceQuality "1"]
[TimeControl "40/5400+30:1800+30"]

1. c4 {[%emt 0:00:00]} e6 {[%emt 0:00:00]} 2. Nf3 {[%emt 0:00:20]} Nf6 {[%emt 0:00:46]} 3. e3 {[%emt 0:00:20]} b6 {[%emt 0:00:55]} 4. d4 {[%emt 0:00:49]} Bb7 {[%emt 0:00:53]} 5. Bd3 {[%emt 0:00:04]} Bb4+ {[%emt 0:00:42]} 6. Nc3 {[%emt 0:00:05]} Bxc3+ {[%emt 0:02:41]} 7. bxc3 {[%emt 0:00:22]} Be4 {[%emt 0:02:07]} 8. Be2 {[%emt 0:02:17]} O-O {[%emt 0:00:44]} 9. O-O {[%emt 0:00:04]} d6 {[%emt 0:00:48]} 10. Nd2 {[%emt 0:00:15]} Bb7 {[%emt 0:00:22]} 11. f3 {[%emt 0:00:13]} Nbd7 {[%emt 0:06:07]} 12. e4 {[%emt 0:00:50]} e5 {[%emt 0:00:18]} 13. Rf2 {[%emt 0:00:32]} Re8 {[%emt 0:00:37]} 14. Nf1 {[%emt 0:00:46]} c5 {[%emt 0:02:55]} 15. d5 {[%emt 0:00:39]} Nf8 {[%emt 0:00:52]} 16. Ne3 {[%emt 0:02:37]} Bc8 {[%emt 0:00:40]} 17. Bd3 {[%emt 0:00:33]} Ng6 {[%emt 0:00:52]} 18. g3 {[%emt 0:00:05]} Kh8 {[%emt 0:13:34]} 19. Bd2 {[%emt 0:00:11]} Rb8 {[%emt 0:01:28]} 20. Qc2 {[%emt 0:01:03]} Rb7 {[%emt 0:03:16]} 21. Kh1 {[%emt 0:02:27]} Bd7 {[%emt 0:04:39]} 22. Rg1 {[%emt 0:00:50]} Rg8 {[%emt 0:08:32]} 23. h4 {[%emt 0:00:45]} Nh5 {[%emt 0:06:09]} 24. Rh2 {[%emt 0:00:07]} Ne7 {[%emt 0:02:41]} 25. Nf5 {[%emt 0:16:27]} Nxf5 {[%emt 0:04:38]} 26. exf5 {[%emt 0:00:40]} Re8 {[%emt 0:09:13]} 27. g4 {[%emt 0:02:52]} Nf4 {[%emt 0:05:42]} 28. Be4 {[%emt 0:00:04]} f6 {[%emt 0:01:52]} 29. Qc1 {[%emt 0:03:15]} Bc8 {[%emt 0:02:30]} 30. Bxf4 {[%emt 0:02:43]} exf4 {[%emt 0:00:07]} 31. Qxf4 {[%emt 0:00:30]} Qe7 {[%emt 0:05:02]} 32. Qd2 {[%emt 0:00:49]} Qf8 {[%emt 0:01:32]} 33. Qf4 {[%emt 0:10:20]} Re5 {[%emt 0:02:53]} 34. g5 {[%emt 0:06:11]} Rbe7 {[%emt 0:03:03]} 35. Rhg2 {[%emt 0:13:55]} fxg5 {[%emt 0:03:27]} 36. Rxg5 {[%emt 0:00:03]} Rf7 {[%emt 0:01:36]} 37. f6 {[%emt 0:01:20]} gxf6 {[%emt 0:01:44]} 38. R5g3 {[%emt 0:05:14]} f5 {[%emt 0:01:05]} 39. Bd3 {[%emt 0:01:42]} Re8 {[%emt 0:01:28]} 40. Rg5 {[%emt 0:01:20]} Rf6 {[%emt 0:00:36]} 41. Qg3 {[%emt 0:35:21]} Rf7 {[%emt 0:08:42]} 42. f4 {[%emt 0:00:00]} h6 {[%emt 0:03:05]} 43. Rg6 {[%emt 0:00:00]} Rf6 {[%emt 0:00:06]} 44. Rg7 {[%emt 0:00:00]} Rf7 {[%emt 0:00:10]} 45. Rxf7 {[%emt 0:00:00]} Qxf7 {[%emt 0:00:10]} 46. Qg6 {[%emt 0:00:00]} Qf8 {[%emt 0:00:39]} 47. Rg3 {[%emt 0:00:00]} Re7 {[%emt 0:02:31]} 48. Kg2 {[%emt 0:00:00]} Rf7 {[%emt 0:01:42]} 49. Kf2 {[%emt 0:00:00]} Rf6 {[%emt 0:00:18]} 50. Qh5 {[%emt 0:00:00]} Bd7 {[%emt 0:01:10]} 51. Qd1 {[%emt 0:01:02]} Kh7 {[%emt 0:00:49]} 52. Be2 {[%emt 0:01:56]} Rg6 {[%emt 0:00:38]} 53. Re3 {[%emt 0:02:29]} Qf6 {[%emt 0:00:15]} 54. Qh1 {[%emt 0:00:04]} Rg7 {[%emt 0:00:15]} 55. Qh3 {[%emt 0:03:38]} 1/2-1/2

[Event "48th Rilton Cup 2018"]
[Site "Stockholm"]
[Date "2018.12.27"]
[Round "1"]
[White "Liang, Awonder"]
[Black "Klek, Hanna Marie"]
[Result "1-0"]
[ECO "C96"]
[WhiteElo "2589"]
[BlackElo "2301"]
[Annotator "ChessBase"]
[PlyCount "131"]
[EventDate "2018.12.27"]
[EventType "swiss"]
[EventCountry "SWE"]
[SourceTitle "playchess.com"]
[Source "ChessBase"]
[SourceQuality "1"]
[TimeControl "40/5400+30:1800+30"]

1. e4 {[%emt 0:00:00]} e5 {[%emt 0:00:00]} 2. Nf3 {[%emt 0:00:00]} Nc6 {[%emt 0:00:00]} 3. Bb5 {[%emt 0:00:00]} a6 {[%emt 0:00:00]} 4. Ba4 {[%emt 0:00:00]} Nf6 {[%emt 0:00:00]} 5. O-O {[%emt 0:00:00]} Be7 {[%emt 0:00:00]} 6. Re1 {[%emt 0:00:00]} b5 {[%emt 0:00:00]} 7. Bb3 {[%emt 0:00:04]} d6 {[%emt 0:00:00]} 8. c3 {[%emt 0:00:06]} O-O {[%emt 0:00:05]} 9. h3 {[%emt 0:00:05]} Na5 {[%emt 0:00:06]} 10. Bc2 {[%emt 0:00:06]} c5 {[%emt 0:00:03]} 11. d4 {[%emt 0:00:06]} Nd7 {[%emt 0:00:06]} 12. d5 {[%emt 0:00:16]} Nb6 {[%emt 0:00:10]} 13. Nbd2 {[%emt 0:00:09]} g6 {[%emt 0:01:59]} 14. b4 {[%emt 0:03:53]} Nb7 {[%emt 0:00:07]} 15. Nf1 {[%emt 0:08:06]} Bf6 {[%emt 0:06:49]} 16. Be3 {[%emt 0:09:30]} Qc7 {[%emt 0:03:00]} 17. a4 {[%emt 0:11:48]} bxa4 {[%emt 0:02:22]} 18. Bxa4 {[%emt 0:00:06]} Nxa4 {[%emt 0:02:46]} 19. Rxa4 {[%emt 0:00:07]} Bd7 {[%emt 0:00:20]} 20. Ra3 {[%emt 0:00:01]} Bg7 {[%emt 0:07:30]} 21. Qd2 {[%emt 0:02:55]} Rfb8 {[%emt 0:18:24]} 22. Rea1 {[%emt 0:03:21]} a5 {[%emt 0:02:42]} 23. Ng3 {[%emt 0:05:11]} Bb5 {[%emt 0:05:48]} 24. Qa2 {[%emt 0:11:00]} a4 {[%emt 0:04:26]} 25. Qd2 {[%emt 0:01:09]} cxb4 {[%emt 0:18:40]} 26. cxb4 {[%emt 0:00:02]} Nd8 {[%emt 0:00:07]} 27. h4 {[%emt 0:17:03]} Qb7 {[%emt 0:01:32]} 28. h5 {[%emt 0:00:48]} f6 {[%emt 0:00:30]} 29. Nh4 {[%emt 0:03:40]} Be8 {[%emt 0:00:13]} 30. Rb1 {[%emt 0:00:20]} Qd7 {[%emt 0:02:16]} 31. Nf3 {[%emt 0:08:42]} Rb7 {[%emt 0:02:37]} 32. Bh6 {[%emt 0:04:19]} Rab8 {[%emt 0:01:09]} 33. Bxg7 {[%emt 0:00:06]} Qxg7 {[%emt 0:01:10]} 34. Nf1 {[%emt 0:02:00]} Nf7 {[%emt 0:03:31]} 35. Ne3 {[%emt 0:00:38]} Bd7 {[%emt 0:01:13]} 36. Nc4 {[%emt 0:01:14]} Qh6 {[%emt 0:03:16]} 37. Re3 {[%emt 0:01:09]} Qxh5 {[%emt 0:02:28]} 38. Na5 {[%emt 0:01:31]} Rb6 {[%emt 0:01:37]} 39. Nc6 {[%emt 0:06:20]} Bxc6 {[%emt 0:00:25]} 40. dxc6 {[%emt 0:00:01]} Rxc6 {[%emt 0:00:14]} 41. b5 {[%emt 0:32:44]} Rc5 {[%emt 0:35:03]} 42. Qa5 {[%emt 0:00:00]} Qg4 {[%emt 0:00:00]} 43. Qxa4 {[%emt 0:00:00]} Qd7 {[%emt 0:00:00]} 44. Reb3 {[%emt 0:00:00]} Rb7 {[%emt 0:00:00]} 45. Nd2 {[%emt 0:00:00]} Ng5 {[%emt 0:01:19]} 46. Qa2 {[%emt 0:00:00]} Kg7 {[%emt 0:00:28]} 47. b6 {[%emt 0:00:00]} Ne6 {[%emt 0:00:44]} 48. Ra3 {[%emt 0:00:00]} Rc8 {[%emt 0:03:44]} 49. Ra7 {[%emt 0:00:00]} Nc5 {[%emt 0:01:51]} 50. Rxb7 {[%emt 0:00:00]} Qxb7 {[%emt 0:00:05]} 51. Nc4 {[%emt 0:00:00]} Ra8 {[%emt 0:01:13]} 52. Qb2 {[%emt 0:00:00]} Nxe4 {[%emt 0:00:33]} 53. Qb4 {[%emt 0:00:00]} Qd5 {[%emt 0:01:25]} 54. b7 {[%emt 0:00:00]} Rb8 {[%emt 0:00:10]} 55. Na5 {[%emt 0:00:00]} Nc5 {[%emt 0:00:39]} 56. Qb6 {[%emt 0:00:00]} Kh6 {[%emt 0:00:31]} 57. Qc7 {[%emt 0:02:57]} Qa2 {[%emt 0:00:50]} 58. Re1 {[%emt 0:02:06]} Na6 {[%emt 0:01:05]} 59. Qb6 {[%emt 0:00:57]} Qd2 {[%emt 0:00:14]} 60. Re3 {[%emt 0:02:31]} Qd1+ {[%emt 0:00:54]} 61. Kh2 {[%emt 0:00:05]} Qd4 {[%emt 0:00:36]} 62. Qxa6 {[%emt 0:00:17]} Qf4+ {[%emt 0:00:21]} 63. Kg1 {[%emt 0:00:07]} d5 {[%emt 0:01:14]} 64. Qd6 {[%emt 0:00:08]} d4 {[%emt 0:00:26]} 65. Rh3+ {[%emt 0:00:11]} Kg7 {[%emt 0:00:30]} 66. Qc7+ {[%emt 0:00:04]} 1-0

[Event "48th Rilton Cup 2018"]
[Site "Stockholm"]
[Date "2018.12.27"]
[Round "1"]
[White "Volkov, Sergey"]
[Black "Priyanka Nutakki"]
[Result "1-0"]
[ECO "E20"]
[WhiteElo "2583"]
[BlackElo "2293"]
[Annotator "ChessBase"]
[PlyCount "85"]
[EventDate "2018.12.27"]
[EventType "swiss"]
[EventCountry "SWE"]
[SourceTitle "playchess.com"]
[Source "ChessBase"]
[SourceQuality "1"]
[TimeControl "40/5400+30:1800+30"]

1. d4 {[%emt 0:00:00]} Nf6 {[%emt 0:00:00]} 2. c4 {[%emt 0:00:00]} e6 {[%emt 0:00:00]} 3. Nc3 {[%emt 0:00:00]} Bb4 {[%emt 0:00:02]} 4. f3 {[%emt 0:00:06]} d5 {[%emt 0:00:19]} 5. a3 {[%emt 0:00:06]} Bxc3+ {[%emt 0:00:24]} 6. bxc3 {[%emt 0:00:06]} O-O {[%emt 0:04:27]} 7. cxd5 {[%emt 0:00:26]} Nxd5 {[%emt 0:05:34]} 8. e4 {[%emt 0:01:10]} Nb6 {[%emt 0:12:14]} 9. Bd3 {[%emt 0:02:33]} c5 {[%emt 0:00:56]} 10. Ne2 {[%emt 0:00:52]} Nc6 {[%emt 0:01:30]} 11. Be3 {[%emt 0:00:40]} Qe7 {[%emt 0:01:13]} 12. O-O {[%emt 0:01:46]} Rd8 {[%emt 0:01:47]} 13. Qb1 {[%emt 0:06:34]} cxd4 {[%emt 0:02:50]} 14. cxd4 {[%emt 0:00:25]} Bd7 {[%emt 0:03:11]} 15. Rc1 {[%emt 0:14:50]} Rac8 {[%emt 0:02:42]} 16. Bf2 {[%emt 0:01:43]} h6 {[%emt 0:07:04]} 17. h3 {[%emt 0:00:33]} Be8 {[%emt 0:07:04]} 18. Ra2 {[%emt 0:02:03]} Na5 {[%emt 0:04:28]} 19. Rxc8 {[%emt 0:01:08]} Rxc8 {[%emt 0:00:27]} 20. Qb4 {[%emt 0:00:57]} Qxb4 {[%emt 0:13:35]} 21. axb4 {[%emt 0:02:10]} Nc6 {[%emt 0:00:01]} 22. Be1 {[%emt 0:05:18]} a6 {[%emt 0:01:04]} 23. b5 {[%emt 0:01:04]} axb5 {[%emt 0:00:09]} 24. Bxb5 {[%emt 0:00:16]} Nb4 {[%emt 0:13:52]} 25. Ra5 {[%emt 0:00:55]} Nc6 {[%emt 0:00:01]} 26. Ra1 {[%emt 0:00:45]} Rd8 {[%emt 0:07:50]} 27. Bg3 {[%emt 0:04:12]} Nc8 {[%emt 0:06:28]} 28. Bc7 {[%emt 0:07:22]} Rd7 {[%emt 0:00:29]} 29. Ba5 {[%emt 0:05:03]} N8a7 30. Bxc6 {[%emt 0:02:07]} Nxc6 {[%emt 0:02:47]} 31. Bb6 {[%emt 0:00:05]} f6 {[%emt 0:00:06]} 32. Ra8 {[%emt 0:00:31]} Kf7 {[%emt 0:00:01]} 33. Kf2 {[%emt 0:00:54]} Re7 {[%emt 0:02:28]} 34. Nc3 {[%emt 0:01:31]} Nb4 {[%emt 0:00:55]} 35. Ke3 {[%emt 0:01:08]} Na6 {[%emt 0:00:21]} 36. d5 {[%emt 0:01:42]} Bd7 {[%emt 0:00:11]} 37. Rd8 {[%emt 0:01:31]} Kg6 {[%emt 0:00:42]} 38. f4 {[%emt 0:03:23]} exd5 {[%emt 0:00:41]} 39. Nxd5 {[%emt 0:00:11]} Rf7 {[%emt 0:00:04]} 40. f5+ {[%emt 0:00:09]} Kg5 41. Kf3 {[%emt 0:32:09]} Bc6 {[%emt 0:04:14]} 42. Be3+ {[%emt 0:00:00]} Kh4 {[%emt 0:00:02]} 43. Bf2+ {[%emt 0:00:00]} 1-0

[Event "48th Rilton Cup 2018"]
[Site "Stockholm"]
[Date "2018.12.27"]
[Round "1"]
[White "Sengupta, Deep"]
[Black "Kenneskog, Theodor"]
[Result "1-0"]
[ECO "B23"]
[WhiteElo "2565"]
[BlackElo "2287"]
[Annotator "ChessBase"]
[PlyCount "69"]
[EventDate "2018.12.27"]
[EventType "swiss"]
[EventCountry "SWE"]
[SourceTitle "playchess.com"]
[Source "ChessBase"]
[SourceQuality "1"]
[TimeControl "40/5400+30:1800+30"]

1. e4 {[%emt 0:00:00]} c5 {[%emt 0:00:00]} 2. Nc3 {[%emt 0:00:00]} d6 {[%emt 0:00:00]} 3. f4 {[%emt 0:00:00]} g6 {[%emt 0:00:00]} 4. Nf3 {[%emt 0:00:00]} Bg7 {[%emt 0:00:00]} 5. Bb5+ {[%emt 0:00:05]} Bd7 {[%emt 0:00:06]} 6. a4 {[%emt 0:00:05]} Nh6 {[%emt 0:14:18]} 7. O-O {[%emt 0:04:02]} O-O {[%emt 0:00:12]} 8. d3 {[%emt 0:03:04]} Nc6 {[%emt 0:07:37]} 9. h3 {[%emt 0:21:32]} f5 {[%emt 0:06:39]} 10. Be3 {[%emt 0:06:28]} Nd4 {[%emt 0:04:23]} 11. Bc4+ {[%emt 0:06:56]} Nf7 {[%emt 0:06:53]} 12. Bxd4 {[%emt 0:10:52]} cxd4 {[%emt 0:00:06]} 13. Ne2 {[%emt 0:00:03]} Kh8 {[%emt 0:10:26]} 14. e5 {[%emt 0:02:01]} e6 {[%emt 0:09:59]} 15. exd6 {[%emt 0:04:53]} Qb6 {[%emt 0:06:36]} 16. Qe1 {[%emt 0:00:06]} Qxd6 {[%emt 0:17:29]} 17. Qf2 {[%emt 0:00:58]} h6 {[%emt 0:00:33]} 18. Nexd4 {[%emt 0:17:20]} g5 {[%emt 0:01:21]} 19. fxg5 {[%emt 0:00:49]} hxg5 {[%emt 0:00:38]} 20. c3 {[%emt 0:00:04]} a6 {[%emt 0:02:10]} 21. Ne2 {[%emt 0:05:55]} b5 {[%emt 0:02:04]} 22. axb5 axb5 {[%emt 0:00:06]} 23. Rxa8 {[%emt 0:01:31]} Rxa8 {[%emt 0:00:02]} 24. Bb3 {[%emt 0:00:05]} Bf6 {[%emt 0:00:19]} 25. Ng3 {[%emt 0:03:10]} b4 {[%emt 0:05:43]} 26. d4 {[%emt 0:02:35]} bxc3 {[%emt 0:00:16]} 27. bxc3 {[%emt 0:00:02]} Rb8 {[%emt 0:01:30]} 28. Nd2 {[%emt 0:04:36]} Qf8 {[%emt 0:03:36]} 29. Qe2 {[%emt 0:01:10]} Rb6 {[%emt 0:00:24]} 30. Ra1 {[%emt 0:02:03]} Qd6 {[%emt 0:01:01]} 31. Qh5+ {[%emt 0:01:22]} Kg7 {[%emt 0:00:02]} 32. Nxf5+ {[%emt 0:00:14]} exf5 {[%emt 0:00:08]} 33. Qxf7+ {[%emt 0:00:05]} Kh6 {[%emt 0:00:18]} 34. Nc4 {[%emt 0:02:00]} Bxd4+ {[%emt 0:01:26]} 35. Kh1 {[%emt 0:00:01]} 1-0

[Event "48th Rilton Cup 2018"]
[Site "Stockholm"]
[Date "2018.12.27"]
[Round "1"]
[White "Kulaots, Kaido"]
[Black "Dauth, Benjamin"]
[Result "1-0"]
[ECO "C50"]
[WhiteElo "2555"]
[BlackElo "2283"]
[Annotator "ChessBase"]
[PlyCount "47"]
[EventDate "2018.12.27"]
[EventType "swiss"]
[EventCountry "SWE"]
[SourceTitle "playchess.com"]
[Source "ChessBase"]
[SourceQuality "1"]
[TimeControl "40/5400+30:1800+30"]

1. e4 {[%emt 0:00:00]} e5 {[%emt 0:00:00]} 2. Nf3 {[%emt 0:00:00]} Nc6 {[%emt 0:00:00]} 3. Bc4 {[%emt 0:00:14]} d6 {[%emt 0:03:49]} 4. c3 {[%emt 0:04:19]} Be6 {[%emt 0:00:50]} 5. Bxe6 {[%emt 0:02:20]} fxe6 {[%emt 0:00:05]} 6. d4 {[%emt 0:00:19]} Nf6 {[%emt 0:13:49]} 7. Qb3 {[%emt 0:07:06]} Qd7 {[%emt 0:07:47]} 8. Nbd2 {[%emt 0:07:59]} exd4 {[%emt 0:00:31]} 9. cxd4 {[%emt 0:01:39]} O-O-O {[%emt 0:03:49]} 10. O-O {[%emt 0:00:19]} g5 {[%emt 0:02:53]} 11. d5 {[%emt 0:04:26]} exd5 {[%emt 0:05:12]} 12. exd5 {[%emt 0:00:04]} Ne7 {[%emt 0:00:39]} 13. Nc4 {[%emt 0:00:06]} Nexd5 {[%emt 0:02:20]} 14. Bxg5 {[%emt 0:01:03]} Be7 {[%emt 0:03:28]} 15. Rfd1 {[%emt 0:10:30]} Qf5 {[%emt 0:05:44]} 16. Bxf6 {[%emt 0:06:34]} Nxf6 {[%emt 0:00:22]} 17. Nd4 {[%emt 0:00:56]} Qg5 {[%emt 0:12:00]} 18. Ne6 {[%emt 0:03:02]} Qh5 {[%emt 0:03:07]} 19. Nxd8 {[%emt 0:02:32]} Rxd8 {[%emt 0:00:06]} 20. Qe3 {[%emt 0:01:35]} Ng4 {[%emt 0:01:07]} 21. Qxe7 {[%emt 0:08:01]} Qxh2+ {[%emt 0:00:10]} 22. Kf1 {[%emt 0:00:04]} Qh1+ {[%emt 0:01:26]} 23. Ke2 {[%emt 0:00:07]} Qxg2 {[%emt 0:00:05]} 24. Nxd6+ {[%emt 0:00:23]} 1-0

[Event "48th Rilton Cup 2018"]
[Site "Stockholm"]
[Date "2018.12.27"]
[Round "1"]
[White "Hillarp Persson, Tiger"]
[Black "Golikov, Daniil"]
[Result "1-0"]
[ECO "A05"]
[WhiteElo "2546"]
[BlackElo "2278"]
[Annotator "ChessBase"]
[PlyCount "67"]
[EventDate "2018.12.27"]
[EventType "swiss"]
[EventCountry "SWE"]
[SourceTitle "playchess.com"]
[Source "ChessBase"]
[SourceQuality "1"]
[TimeControl "40/5400+30:1800+30"]

1. Nf3 {[%emt 0:00:00]} Nf6 {[%emt 0:00:00]} 2. c4 {[%emt 0:00:06]} e6 {[%emt 0:00:00]} 3. g3 {[%emt 0:00:25]} b6 {[%emt 0:00:42]} 4. Bg2 {[%emt 0:00:11]} Bb7 {[%emt 0:00:04]} 5. O-O {[%emt 0:00:22]} c5 {[%emt 0:00:44]} 6. b3 {[%emt 0:01:43]} Be7 {[%emt 0:01:01]} 7. Bb2 {[%emt 0:00:18]} O-O {[%emt 0:00:03]} 8. e3 {[%emt 0:01:20]} d5 {[%emt 0:03:23]} 9. Nc3 {[%emt 0:02:01]} dxc4 {[%emt 0:03:41]} 10. bxc4 {[%emt 0:00:09]} Nc6 {[%emt 0:00:10]} 11. Qe2 {[%emt 0:00:27]} Rc8 {[%emt 0:05:24]} 12. Rad1 {[%emt 0:01:19]} Qc7 {[%emt 0:02:04]} 13. Ne1 {[%emt 0:01:41]} Qb8 {[%emt 0:10:09]} 14. f4 {[%emt 0:00:58]} Rfd8 {[%emt 0:01:47]} 15. g4 {[%emt 0:06:26]} Na5 {[%emt 0:17:16]} 16. g5 {[%emt 0:05:12]} Ne8 {[%emt 0:04:51]} 17. Ne4 {[%emt 0:22:59]} Nd6 {[%emt 0:13:50]} 18. Nxd6 {[%emt 0:01:39]} Bxd6 {[%emt 0:00:43]} 19. Bc3 {[%emt 0:03:40]} Nc6 {[%emt 0:01:24]} 20. Rf3 {[%emt 0:12:11]} Nd4 {[%emt 0:02:26]} 21. exd4 {[%emt 0:00:08]} Bxf3 {[%emt 0:00:03]} 22. Nxf3 {[%emt 0:00:27]} Bxf4 {[%emt 0:01:02]} 23. dxc5 bxc5 {[%emt 0:07:37]} 24. Qe4 {[%emt 0:05:33]} Qc7 {[%emt 0:00:58]} 25. h4 {[%emt 0:02:51]} Bg3 {[%emt 0:01:25]} 26. Ne5 {[%emt 0:04:18]} Qd6 {[%emt 0:02:18]} 27. Bf1 {[%emt 0:10:20]} Bxe5 {[%emt 0:03:37]} 28. Bxe5 {[%emt 0:00:15]} Qc6 {[%emt 0:00:02]} 29. Qf4 {[%emt 0:03:01]} Qa4 {[%emt 0:04:00]} 30. Rb1 {[%emt 0:04:26]} Rd7 {[%emt 0:03:14]} 31. Bc3 {[%emt 0:01:05]} Qc2 {[%emt 0:00:22]} 32. Rb8 {[%emt 0:02:19]} Rdd8 {[%emt 0:00:26]} 33. Rxc8 {[%emt 0:00:30]} Rxc8 {[%emt 0:00:02]} 34. Qe5 {[%emt 0:00:12]} 1-0